[Event "Titled Tuesday Blitz July 6 2021"]
[White "Budiarti, Farah Yumna"]
[Black "Pohjala, Henri"]
[WhiteFideId "7107331"]
[BlackFideId "506478"]
[WhiteElo "2524"]
[BlackElo "2365"]
[Result "0-1"]
[Round "05"]
[TimeControl "180+1"]
[Date "2021.07.06"]
[WhiteClock "0:00:03"]
[BlackClock "0:00:06"]

1. d4 {[%clk 0:02:55]}  d5 {[%clk 0:02:59]} 2. Nf3 {[%clk 0:02:55]}  Nf6 {[%clk 0:02:58]} 3. c4 {[%clk 0:02:55]}  c6 {[%clk 0:02:59]} 4. g3 {[%clk 0:02:55]}  e6 {[%clk 0:02:58]} 5. Bg2 {[%clk 0:02:55]}  Nbd7 {[%clk 0:02:58]} 6. O-O {[%clk 0:02:54]}  Be7 {[%clk 0:02:56]} 7. Nc3 {[%clk 0:02:53]}  O-O {[%clk 0:02:56]} 8. Qd3 {[%clk 0:02:52]}  b6 {[%clk 0:02:44]} 9. e4 {[%clk 0:02:50]}  dxe4 {[%clk 0:02:43]} 10. Nxe4 {[%clk 0:02:50]}  Bb7 {[%clk 0:02:44]} 11. Rd1 {[%clk 0:02:45]}  c5 {[%clk 0:02:29]} 12. d5 {[%clk 0:02:01]}  exd5 {[%clk 0:02:27]} 13. cxd5 {[%clk 0:01:57]}  Nxe4 {[%clk 0:02:26]} 14. Qxe4 {[%clk 0:01:58]}  Re8 {[%clk 0:02:25]} 15. Qc2 {[%clk 0:01:48]}  Bd6 {[%clk 0:02:20]} 16. Nd2 {[%clk 0:01:35]}  Bf8 {[%clk 0:01:41]} 17. Ne4 {[%clk 0:01:31]}  h6 {[%clk 0:01:36]} 18. d6 {[%clk 0:01:25]}  Qc8 {[%clk 0:01:27]} 19. h4 {[%clk 0:01:22]}  Bc6 {[%clk 0:01:26]} 20. Bf4 {[%clk 0:01:14]}  Qb7 {[%clk 0:01:25]} 21. f3 {[%clk 0:00:50]}  Rad8 {[%clk 0:01:05]} 22. a4 {[%clk 0:00:20]}  a6 {[%clk 0:01:05]} 23. a5 {[%clk 0:00:20]}  Bxe4 {[%clk 0:00:51]} 24. fxe4 {[%clk 0:00:19]}  Ne5 {[%clk 0:00:52]} 25. axb6 {[%clk 0:00:14]}  Bxd6 {[%clk 0:00:47]} 26. Rd5 {[%clk 0:00:14]}  Qxb6 {[%clk 0:00:44]} 27. Rad1 {[%clk 0:00:07]}  Bc7 {[%clk 0:00:35]} 28. Rxd8 {[%clk 0:00:05]}  Bxd8 {[%clk 0:00:29]} 29. Bxe5 {[%clk 0:00:04]}  Rxe5 {[%clk 0:00:27]} 30. Qc4 {[%clk 0:00:04]}  Bf6 {[%clk 0:00:22]} 31. Rd7 {[%clk 0:00:03]}  Qe6 {[%clk 0:00:17]} 32. Qxe6 {[%clk 0:00:03]}  Rxe6 {[%clk 0:00:18]} 33. Rb7 {[%clk 0:00:03]}  c4 {[%clk 0:00:16]} 34. Kf1 {[%clk 0:00:02]}  Rd6 {[%clk 0:00:14]} 35. Ke2 {[%clk 0:00:02]}  Be5 {[%clk 0:00:14]} 36. Bf3 {[%clk 0:00:02]}  Bxg3 {[%clk 0:00:13]} 37. h5 {[%clk 0:00:02]}  g6 {[%clk 0:00:13]} 38. Rc7 {[%clk 0:00:02]}  gxh5 {[%clk 0:00:10]} 39. Rxc4 {[%clk 0:00:02]}  h4 {[%clk 0:00:09]} 40. Rc5 {[%clk 0:00:03]}  h3 {[%clk 0:00:08]} 41. Rh5 {[%clk 0:00:03]}  h2 {[%clk 0:00:08]} 42. Rh3 {[%clk 0:00:04]}  Bf4 {[%clk 0:00:07]} 43. Bh5 {[%clk 0:00:04]}  Be5 {[%clk 0:00:05]} 44. b3 {[%clk 0:00:04]}  Rc6 {[%clk 0:00:04]} 45. Bf3 {[%clk 0:00:04]}  Rc1 {[%clk 0:00:03]} 46. Rh5 {[%clk 0:00:04]}  f6 {[%clk 0:00:03]} 47. Kd2 {[%clk 0:00:04]}  Ra1 {[%clk 0:00:02]} 48. Kd3 {[%clk 0:00:04]}  Kg7 {[%clk 0:00:03]} 49. Kc4 {[%clk 0:00:04]}  Rf1 {[%clk 0:00:03]} 50. Bg4 {[%clk 0:00:04]}  Rg1 {[%clk 0:00:03]} 51. Bf3 {[%clk 0:00:04]}  Rf1 {[%clk 0:00:03]} 52. Bg2 {[%clk 0:00:05]}  Rf2 {[%clk 0:00:03]} 53. Bh1 {[%clk 0:00:05]}  Rc2+ {[%clk 0:00:03]} 54. Kd5 {[%clk 0:00:05]}  Rc1 {[%clk 0:00:04]} 55. Bg2 {[%clk 0:00:05]}  a5 {[%clk 0:00:04]} 56. Ke6 {[%clk 0:00:05]}  Rc6+ {[%clk 0:00:04]} 57. Kf5 {[%clk 0:00:05]}  Rc3 {[%clk 0:00:05]} 58. Ke6 {[%clk 0:00:03]}  Rxb3 {[%clk 0:00:05]} 59. Bh1 {[%clk 0:00:03]}  Rb6+ {[%clk 0:00:05]} 60. Kd7 {[%clk 0:00:03]}  Rb1 {[%clk 0:00:05]} 61. Bf3 {[%clk 0:00:02]}  a4 {[%clk 0:00:05]} 62. Rh3 {[%clk 0:00:02]}  a3 {[%clk 0:00:06]} 63. Bh5 {[%clk 0:00:03]}  a2 {[%clk 0:00:06]} 0-1


[Site "https://www.chess.com"]

[Event "Titled Tuesday Blitz July 6 2021"]
[White "Ciorgovean, Iustin"]
[Black "Vogel, Roven"]
[WhiteFideId "1242911"]
[BlackFideId "12908088"]
[WhiteElo "2075"]
[BlackElo "2516"]
[Result "1-0"]
[Round "05"]
[TimeControl "180+1"]
[Date "2021.07.06"]
[WhiteClock "0:00:24"]
[BlackClock "0:01:00"]

1. d4 {[%clk 0:03:00]}  Nf6 {[%clk 0:02:59]} 2. c4 {[%clk 0:03:01]}  g6 {[%clk 0:03:00]} 3. Nc3 {[%clk 0:03:01]}  Bg7 {[%clk 0:03:00]} 4. e4 {[%clk 0:03:01]}  d6 {[%clk 0:03:01]} 5. Nf3 {[%clk 0:03:00]}  O-O {[%clk 0:03:01]} 6. Be2 {[%clk 0:03:01]}  Bg4 {[%clk 0:03:01]} 7. Be3 {[%clk 0:03:01]}  Nfd7 {[%clk 0:02:59]} 8. Ng1 {[%clk 0:03:01]}  Bxe2 {[%clk 0:02:59]} 9. Ngxe2 {[%clk 0:03:02]}  e5 {[%clk 0:02:49]} 10. O-O {[%clk 0:03:01]}  exd4 {[%clk 0:02:38]} 11. Bxd4 {[%clk 0:03:01]}  Nc6 {[%clk 0:02:32]} 12. Bxg7 {[%clk 0:03:01]}  Kxg7 {[%clk 0:02:33]} 13. Qd2 {[%clk 0:02:52]}  Nf6 {[%clk 0:02:20]} 14. Rad1 {[%clk 0:02:46]}  Ne5 {[%clk 0:02:17]} 15. b3 {[%clk 0:02:44]}  Qe7 {[%clk 0:02:13]} 16. Nf4 {[%clk 0:02:31]}  Rac8 {[%clk 0:02:00]} 17. Nfd5 {[%clk 0:02:25]}  Nxd5 {[%clk 0:02:00]} 18. Nxd5 {[%clk 0:02:24]}  Qh4 {[%clk 0:01:55]} 19. f4 {[%clk 0:02:04]}  Nc6 {[%clk 0:01:30]} 20. Qc3+ {[%clk 0:01:41]}  f6 {[%clk 0:01:30]} 21. b4 {[%clk 0:01:34]}  Rf7 {[%clk 0:01:28]} 22. Rd3 {[%clk 0:01:20]}  Re8 {[%clk 0:01:26]} 23. Re3 {[%clk 0:01:14]}  Ne7 {[%clk 0:01:22]} 24. Nxc7 {[%clk 0:01:10]}  Rc8 {[%clk 0:01:20]} 25. Ne6+ {[%clk 0:01:03]}  Kg8 {[%clk 0:01:19]} 26. Qd4 {[%clk 0:00:53]}  Nc6 {[%clk 0:01:18]} 27. Qxd6 {[%clk 0:00:51]}  Re8 {[%clk 0:01:17]} 28. b5 {[%clk 0:00:44]}  Na5 {[%clk 0:01:17]} 29. Qd5 {[%clk 0:00:41]}  Qh5 {[%clk 0:01:02]} 30. Nd8 {[%clk 0:00:37]}  Qxd5 {[%clk 0:01:01]} 31. exd5 {[%clk 0:00:25]}  Re4 {[%clk 0:01:00]} 32. Rxe4 {[%clk 0:00:24]} 1-0


[Site "https://www.chess.com"]

[Event "Titled Tuesday Blitz July 6 2021"]
[White "Dan-Lowes"]
[Black "Bakalchuk, Johnatan"]
[BlackFideId "2810301"]
[WhiteElo "2239"]
[BlackElo "2507"]
[Result "1-0"]
[Round "05"]
[TimeControl "180+1"]
[Date "2021.07.06"]
[WhiteClock "0:01:00"]
[BlackClock "0:00:02"]

1. e4 {[%clk 0:03:00]}  c6 {[%clk 0:02:57]} 2. d4 {[%clk 0:03:00]}  d5 {[%clk 0:02:57]} 3. e5 {[%clk 0:03:00]}  Bf5 {[%clk 0:02:57]} 4. h4 {[%clk 0:03:00]}  h5 {[%clk 0:02:57]} 5. Bd3 {[%clk 0:03:00]}  Bxd3 {[%clk 0:02:55]} 6. Qxd3 {[%clk 0:03:01]}  e6 {[%clk 0:02:51]} 7. Bg5 {[%clk 0:03:01]}  Qa5+ {[%clk 0:02:51]} 8. Nd2 {[%clk 0:03:01]}  Qa6 {[%clk 0:02:52]} 9. c4 {[%clk 0:03:01]}  Nh6 {[%clk 0:02:51]} 10. Ne2 {[%clk 0:03:00]}  Nf5 {[%clk 0:02:52]} 11. O-O {[%clk 0:02:58]}  Nd7 {[%clk 0:02:51]} 12. Ng3 {[%clk 0:02:58]}  g6 {[%clk 0:02:49]} 13. Nxf5 {[%clk 0:02:55]}  gxf5 {[%clk 0:02:49]} 14. Qc2 {[%clk 0:02:49]}  Be7 {[%clk 0:02:48]} 15. Bxe7 {[%clk 0:02:44]}  Kxe7 {[%clk 0:02:49]} 16. cxd5 {[%clk 0:02:45]}  cxd5 {[%clk 0:02:48]} 17. Rac1 {[%clk 0:02:42]}  Rhg8 {[%clk 0:02:26]} 18. Qb3 {[%clk 0:02:34]}  Qa5 {[%clk 0:01:59]} 19. Nf3 {[%clk 0:02:29]}  Rac8 {[%clk 0:01:53]} 20. Ng5 {[%clk 0:02:25]}  Nb6 {[%clk 0:01:42]} 21. Qf3 {[%clk 0:02:23]}  Rh8 {[%clk 0:00:36]} 22. Rxc8 {[%clk 0:02:21]}  Nxc8 {[%clk 0:00:37]} 23. Rc1 {[%clk 0:02:21]}  Nb6 {[%clk 0:00:18]} 24. Rc7+ {[%clk 0:02:18]}  Nd7 {[%clk 0:00:18]} 25. Rxb7 {[%clk 0:02:16]}  Qa6 {[%clk 0:00:18]} 26. Qb3 {[%clk 0:02:07]}  Rc8 {[%clk 0:00:11]} 27. Qa3+ {[%clk 0:01:28]}  Qxa3 {[%clk 0:00:09]} 28. bxa3 {[%clk 0:01:29]}  Rc1+ {[%clk 0:00:05]} 29. Kh2 {[%clk 0:01:29]}  Rc2 {[%clk 0:00:06]} 30. f3 {[%clk 0:01:21]}  a5 {[%clk 0:00:04]} 31. Nxf7 {[%clk 0:01:20]}  Rxa2 {[%clk 0:00:04]} 32. Rb3 {[%clk 0:01:05]}  a4 {[%clk 0:00:04]} 33. Rb7 {[%clk 0:01:03]}  Rxa3 {[%clk 0:00:04]} 34. Nd6 {[%clk 0:01:04]}  Ra1 {[%clk 0:00:03]} 35. Ra7 {[%clk 0:01:04]}  a3 {[%clk 0:00:03]} 36. Nb5 {[%clk 0:01:04]}  a2 {[%clk 0:00:03]} 37. Nc3 {[%clk 0:01:04]}  Rc1 {[%clk 0:00:01]} 38. Nxa2 {[%clk 0:01:04]}  Ra1 {[%clk 0:00:01]} 39. Ra6 {[%clk 0:01:01]}  Kd8 {[%clk 0:00:01]} 40. Nb4 {[%clk 0:01:01]}  Kc7 {[%clk 0:00:02]} 41. Rxa1 {[%clk 0:01:00]} 1-0


[Site "https://www.chess.com"]

[Event "Titled Tuesday Blitz July 6 2021"]
[White "Deepan Chakkravarthy J."]
[Black "Zhigalko, Sergei"]
[WhiteFideId "5011132"]
[BlackFideId "13502956"]
[WhiteElo "2490"]
[BlackElo "2662"]
[Result "1/2-1/2"]
[Round "05"]
[TimeControl "180+1"]
[Date "2021.07.06"]
[WhiteClock "0:01:06"]
[BlackClock "0:00:22"]

1. e4 {[%clk 0:03:00]}  c5 {[%clk 0:02:55]} 2. Nf3 {[%clk 0:03:00]}  Nc6 {[%clk 0:02:55]} 3. Bb5 {[%clk 0:02:58]}  Nf6 {[%clk 0:02:55]} 4. Bxc6 {[%clk 0:02:57]}  dxc6 {[%clk 0:02:55]} 5. d3 {[%clk 0:02:57]}  Bg4 {[%clk 0:02:55]} 6. Nbd2 {[%clk 0:02:56]}  Nd7 {[%clk 0:02:54]} 7. h3 {[%clk 0:02:56]}  Bh5 {[%clk 0:02:54]} 8. g4 {[%clk 0:02:54]}  Bg6 {[%clk 0:02:54]} 9. Nf1 {[%clk 0:02:54]}  e6 {[%clk 0:02:52]} 10. Ng3 {[%clk 0:02:54]}  Bd6 {[%clk 0:02:50]} 11. Qe2 {[%clk 0:02:53]}  Qc7 {[%clk 0:02:50]} 12. Rg1 {[%clk 0:02:51]}  O-O-O {[%clk 0:02:47]} 13. Bd2 {[%clk 0:02:51]}  f6 {[%clk 0:02:23]} 14. O-O-O {[%clk 0:02:47]}  Rhe8 {[%clk 0:02:23]} 15. Kb1 {[%clk 0:02:44]}  a5 {[%clk 0:02:15]} 16. a3 {[%clk 0:02:40]}  a4 {[%clk 0:02:15]} 17. h4 {[%clk 0:02:38]}  Bf7 {[%clk 0:02:02]} 18. Qe1 {[%clk 0:02:30]}  Kb8 {[%clk 0:01:52]} 19. Bc3 {[%clk 0:02:28]}  e5 {[%clk 0:01:35]} 20. g5 {[%clk 0:02:22]}  Nf8 {[%clk 0:01:30]} 21. h5 {[%clk 0:02:15]}  Ne6 {[%clk 0:01:27]} 22. h6 {[%clk 0:02:06]}  Nd4 {[%clk 0:01:02]} 23. Bxd4 {[%clk 0:01:46]}  cxd4 {[%clk 0:01:02]} 24. hxg7 {[%clk 0:01:45]}  Bg8 {[%clk 0:01:02]} 25. gxf6 {[%clk 0:01:33]}  Qf7 {[%clk 0:01:02]} 26. Nf5 {[%clk 0:01:29]}  Bxa3 {[%clk 0:00:34]} 27. bxa3 {[%clk 0:01:14]}  Qa2+ {[%clk 0:00:33]} 28. Kc1 {[%clk 0:01:15]}  Bb3 {[%clk 0:00:34]} 29. Qe2 {[%clk 0:01:06]}  Qa1+ {[%clk 0:00:20]} 30. Kd2 {[%clk 0:01:06]}  Qc3+ {[%clk 0:00:21]} 31. Kc1 {[%clk 0:01:06]}  Qa1+ {[%clk 0:00:21]} 32. Kd2 {[%clk 0:01:06]}  Qc3+ {[%clk 0:00:21]} 33. Kc1 {[%clk 0:01:06]}  Qa1+ {[%clk 0:00:22]} 1/2-1/2


[Site "https://www.chess.com"]

[Event "Titled Tuesday Blitz July 6 2021"]
[White "Erdogdu, Mert"]
[Black "LEGENYA1998"]
[WhiteFideId "6301495"]
[WhiteElo "2485"]
[BlackElo "2462"]
[Result "1-0"]
[Round "05"]
[TimeControl "180+1"]
[Date "2021.07.06"]
[WhiteClock "0:01:09"]
[BlackClock "0:01:30"]

1. e4 {[%clk 0:03:00]}  d5 {[%clk 0:02:59]} 2. exd5 {[%clk 0:03:00]}  Qxd5 {[%clk 0:03:00]} 3. Nc3 {[%clk 0:03:00]}  Qa5 {[%clk 0:03:00]} 4. d4 {[%clk 0:03:01]}  Nf6 {[%clk 0:03:00]} 5. Nf3 {[%clk 0:03:01]}  Bg4 {[%clk 0:03:00]} 6. h3 {[%clk 0:02:59]}  Bxf3 {[%clk 0:02:49]} 7. Qxf3 {[%clk 0:02:58]}  c6 {[%clk 0:02:50]} 8. Bd3 {[%clk 0:02:54]}  e6 {[%clk 0:02:50]} 9. Bd2 {[%clk 0:02:49]}  Qc7 {[%clk 0:02:49]} 10. O-O-O {[%clk 0:02:48]}  Nbd7 {[%clk 0:02:48]} 11. g4 {[%clk 0:02:47]}  Nd5 {[%clk 0:02:47]} 12. Ne4 {[%clk 0:02:44]}  b5 {[%clk 0:02:48]} 13. g5 {[%clk 0:02:37]}  Be7 {[%clk 0:02:47]} 14. h4 {[%clk 0:02:37]}  N7b6 {[%clk 0:02:35]} 15. h5 {[%clk 0:02:33]}  f5 {[%clk 0:02:27]} 16. gxf6 {[%clk 0:02:30]}  gxf6 {[%clk 0:02:26]} 17. Kb1 {[%clk 0:01:58]}  O-O-O {[%clk 0:02:25]} 18. Rhe1 {[%clk 0:01:57]}  Rhe8 {[%clk 0:02:21]} 19. h6 {[%clk 0:01:35]}  Nb4 {[%clk 0:01:43]} 20. Bxb4 {[%clk 0:01:33]}  Bxb4 {[%clk 0:01:43]} 21. c3 {[%clk 0:01:16]}  Be7 {[%clk 0:01:40]} 22. Nxf6 {[%clk 0:01:11]}  Rf8 {[%clk 0:01:38]} 23. Rxe6 {[%clk 0:01:10]}  Nd7 {[%clk 0:01:30]} 24. Rxc6 {[%clk 0:01:09]} 1-0


[Site "https://www.chess.com"]

[Event "Titled Tuesday Blitz July 6 2021"]
[White "Fernandez, Michael"]
[Black "Arabidze, Meri"]
[WhiteFideId "5803560"]
[BlackFideId "13604040"]
[WhiteElo "2110"]
[BlackElo "2432"]
[Result "0-1"]
[Round "05"]
[TimeControl "180+1"]
[Date "2021.07.06"]
[WhiteClock "0:00:12"]
[BlackClock "0:00:40"]

1. c4 {[%clk 0:03:00]}  e6 {[%clk 0:03:00]} 2. g3 {[%clk 0:02:58]}  d5 {[%clk 0:03:00]} 3. Bg2 {[%clk 0:02:58]}  Nf6 {[%clk 0:03:01]} 4. Nf3 {[%clk 0:02:58]}  dxc4 {[%clk 0:03:02]} 5. O-O {[%clk 0:02:57]}  Nbd7 {[%clk 0:03:01]} 6. b3 {[%clk 0:02:48]}  cxb3 {[%clk 0:03:01]} 7. axb3 {[%clk 0:02:47]}  Be7 {[%clk 0:03:01]} 8. Qc2 {[%clk 0:02:40]}  O-O {[%clk 0:03:00]} 9. e4 {[%clk 0:02:34]}  h6 {[%clk 0:02:57]} 10. d4 {[%clk 0:02:34]}  a5 {[%clk 0:02:53]} 11. Ba3 {[%clk 0:02:21]}  c6 {[%clk 0:02:38]} 12. Rd1 {[%clk 0:02:13]}  Nb6 {[%clk 0:02:20]} 13. Bxe7 {[%clk 0:02:02]}  Qxe7 {[%clk 0:02:21]} 14. Na3 {[%clk 0:02:01]}  a4 {[%clk 0:02:03]} 15. Nc4 {[%clk 0:01:56]}  axb3 {[%clk 0:01:57]} 16. Qxb3 {[%clk 0:01:56]}  Rxa1 {[%clk 0:01:58]} 17. Rxa1 {[%clk 0:01:54]}  Nxc4 {[%clk 0:01:59]} 18. Qxc4 {[%clk 0:01:36]}  Nxe4 {[%clk 0:01:58]} 19. Ne5 {[%clk 0:01:32]}  Nd6 {[%clk 0:01:58]} 20. Qb4 {[%clk 0:01:14]}  Nf5 {[%clk 0:01:57]} 21. Qc3 {[%clk 0:00:57]}  Rd8 {[%clk 0:01:53]} 22. Ra8 {[%clk 0:00:55]}  Bd7 {[%clk 0:01:47]} 23. Ra7 {[%clk 0:00:52]}  Qd6 {[%clk 0:01:28]} 24. Rxb7 {[%clk 0:00:37]}  Nxd4 {[%clk 0:01:28]} 25. Qe3 {[%clk 0:00:37]}  Be8 {[%clk 0:01:24]} 26. Nc4 {[%clk 0:00:32]}  Qc5 {[%clk 0:01:19]} 27. Nb6 {[%clk 0:00:29]}  Qc2 {[%clk 0:01:11]} 28. h4 {[%clk 0:00:28]}  Nf5 {[%clk 0:00:48]} 29. Qf4 {[%clk 0:00:23]}  Rd4 {[%clk 0:00:44]} 30. Qb8 {[%clk 0:00:20]}  Rd1+ {[%clk 0:00:44]} 31. Kh2 {[%clk 0:00:20]}  Qxf2 {[%clk 0:00:44]} 32. Qxe8+ {[%clk 0:00:19]}  Kh7 {[%clk 0:00:44]} 33. Qb8 {[%clk 0:00:17]}  Rd2 {[%clk 0:00:43]} 34. Kh3 {[%clk 0:00:16]}  Qxg2+ {[%clk 0:00:42]} 35. Kg4 {[%clk 0:00:16]}  Qe2+ {[%clk 0:00:41]} 36. Kh3 {[%clk 0:00:16]}  h5 {[%clk 0:00:40]} 37. Qa8 {[%clk 0:00:12]}  Qg2# {[%clk 0:00:40]} 0-1


[Site "https://www.chess.com"]

[Event "Titled Tuesday Blitz July 6 2021"]
[White "Fiol, Fabrice"]
[Black "Alavi, Sayed Javad"]
[WhiteFideId "611670"]
[BlackFideId "12500607"]
[WhiteElo "2464"]
[BlackElo "2495"]
[Result "0-1"]
[Round "05"]
[TimeControl "180+1"]
[Date "2021.07.06"]
[WhiteClock "0:00:01"]
[BlackClock "0:00:06"]

1. e4 {[%clk 0:03:00]}  e5 {[%clk 0:02:56]} 2. Nf3 {[%clk 0:03:00]}  Nc6 {[%clk 0:02:57]} 3. Bc4 {[%clk 0:02:59]}  Nf6 {[%clk 0:02:55]} 4. d3 {[%clk 0:02:59]}  Bc5 {[%clk 0:02:54]} 5. c3 {[%clk 0:02:58]}  d6 {[%clk 0:02:54]} 6. Bb3 {[%clk 0:02:58]}  O-O {[%clk 0:02:53]} 7. Nbd2 {[%clk 0:02:59]}  h6 {[%clk 0:02:51]} 8. h3 {[%clk 0:02:58]}  Be6 {[%clk 0:02:51]} 9. Qe2 {[%clk 0:02:51]}  d5 {[%clk 0:02:33]} 10. g4 {[%clk 0:02:49]}  a5 {[%clk 0:02:30]} 11. Rg1 {[%clk 0:02:44]}  a4 {[%clk 0:02:26]} 12. Bc2 {[%clk 0:02:45]}  dxe4 {[%clk 0:02:13]} 13. dxe4 {[%clk 0:02:30]}  Nd7 {[%clk 0:02:13]} 14. g5 {[%clk 0:02:24]}  hxg5 {[%clk 0:01:59]} 15. Nxg5 {[%clk 0:01:54]}  Qf6 {[%clk 0:01:59]} 16. Ndf3 {[%clk 0:01:38]}  Rad8 {[%clk 0:01:45]} 17. Be3 {[%clk 0:01:34]}  Bxe3 {[%clk 0:01:42]} 18. Qxe3 {[%clk 0:01:34]}  Nb6 {[%clk 0:01:41]} 19. Nxe6 {[%clk 0:01:32]}  fxe6 {[%clk 0:01:38]} 20. Qg5 {[%clk 0:01:08]}  Nc4 {[%clk 0:01:37]} 21. b3 {[%clk 0:01:00]}  Na3 {[%clk 0:01:33]} 22. Bd1 {[%clk 0:00:58]}  Rd7 {[%clk 0:01:03]} 23. Qxf6 {[%clk 0:00:56]}  Rxf6 {[%clk 0:01:04]} 24. Rg3 {[%clk 0:00:44]}  axb3 {[%clk 0:00:54]} 25. axb3 {[%clk 0:00:42]}  Nb5 {[%clk 0:00:53]} 26. Rc1 {[%clk 0:00:38]}  Rd3 {[%clk 0:00:46]} 27. c4 {[%clk 0:00:16]}  Nbd4 {[%clk 0:00:32]} 28. Nxd4 {[%clk 0:00:16]}  Rxg3 {[%clk 0:00:32]} 29. fxg3 {[%clk 0:00:17]}  Nxd4 {[%clk 0:00:33]} 30. b4 {[%clk 0:00:16]}  b6 {[%clk 0:00:26]} 31. c5 {[%clk 0:00:14]}  b5 {[%clk 0:00:25]} 32. Rc3 {[%clk 0:00:14]}  c6 {[%clk 0:00:24]} 33. Ra3 {[%clk 0:00:15]}  Kh7 {[%clk 0:00:22]} 34. h4 {[%clk 0:00:13]}  Kg6 {[%clk 0:00:22]} 35. Ra8 {[%clk 0:00:12]}  Rf7 {[%clk 0:00:21]} 36. Rd8 {[%clk 0:00:10]}  Ra7 {[%clk 0:00:20]} 37. g4 {[%clk 0:00:07]}  Ra3 {[%clk 0:00:19]} 38. Rg8 {[%clk 0:00:05]}  Rh3 {[%clk 0:00:17]} 39. h5+ {[%clk 0:00:05]}  Kg5 {[%clk 0:00:18]} 40. Rxg7+ {[%clk 0:00:05]}  Kf4 {[%clk 0:00:19]} 41. g5 {[%clk 0:00:05]}  Ke3 {[%clk 0:00:19]} 42. Kf1 {[%clk 0:00:04]}  Rh1+ {[%clk 0:00:19]} 43. Kg2 {[%clk 0:00:04]}  Rxd1 {[%clk 0:00:19]} 44. h6 {[%clk 0:00:05]}  Nf3 {[%clk 0:00:19]} 45. g6 {[%clk 0:00:03]}  Rg1+ {[%clk 0:00:17]} 46. Kh3 {[%clk 0:00:03]}  Rh1+ {[%clk 0:00:17]} 47. Kg3 {[%clk 0:00:03]}  Rxh6 {[%clk 0:00:17]} 48. Rg8 {[%clk 0:00:04]}  Ng5 {[%clk 0:00:15]} 49. g7 {[%clk 0:00:05]}  Rg6 {[%clk 0:00:15]} 50. Kg4 {[%clk 0:00:04]}  Nxe4+ {[%clk 0:00:14]} 51. Kh5 {[%clk 0:00:04]}  Rg1 {[%clk 0:00:08]} 52. Kh6 {[%clk 0:00:05]}  Nc3 {[%clk 0:00:06]} 53. Re8 {[%clk 0:00:04]}  Rxg7 {[%clk 0:00:06]} 54. Kxg7 {[%clk 0:00:05]}  Kd4 {[%clk 0:00:06]} 55. Rxe6 {[%clk 0:00:05]}  e4 {[%clk 0:00:06]} 56. Rxc6 {[%clk 0:00:05]}  e3 {[%clk 0:00:06]} 57. Re6 {[%clk 0:00:05]}  Ne4 {[%clk 0:00:07]} 58. c6 {[%clk 0:00:05]}  e2 {[%clk 0:00:07]} 59. Rxe4+ {[%clk 0:00:05]}  Kxe4 {[%clk 0:00:07]} 60. c7 {[%clk 0:00:05]}  e1=Q {[%clk 0:00:07]} 61. c8=Q {[%clk 0:00:06]}  Qxb4 {[%clk 0:00:07]} 62. Qe6+ {[%clk 0:00:06]}  Kd3 {[%clk 0:00:07]} 63. Qh3+ {[%clk 0:00:05]}  Kc2 {[%clk 0:00:07]} 64. Qg2+ {[%clk 0:00:04]}  Kb3 {[%clk 0:00:07]} 65. Kf7 {[%clk 0:00:02]}  Qc4+ {[%clk 0:00:07]} 66. Ke8 {[%clk 0:00:02]}  b4 {[%clk 0:00:07]} 67. Kd7 {[%clk 0:00:02]}  Ka3 {[%clk 0:00:06]} 68. Qa8+ {[%clk 0:00:01]}  Kb2 {[%clk 0:00:06]} 69. Qb7 {[%clk 0:00:01]}  b3 {[%clk 0:00:06]} 70. Qa7 {[%clk 0:00:01]}  Qd3+ {[%clk 0:00:05]} 71. Kc6 {[%clk 0:00:01]}  Qc4+ {[%clk 0:00:06]} 72. Kd6 {[%clk 0:00:01]}  Kb1 {[%clk 0:00:06]} 0-1


[Site "https://www.chess.com"]

[Event "Titled Tuesday Blitz July 6 2021"]
[White "Galego, Luis"]
[Black "Pruijssers, Roeland"]
[WhiteFideId "1900072"]
[BlackFideId "1013068"]
[WhiteElo "2524"]
[BlackElo "2545"]
[Result "0-1"]
[Round "05"]
[TimeControl "180+1"]
[Date "2021.07.06"]
[WhiteClock "0:00:01"]
[BlackClock "0:00:26"]

1. d4 {[%clk 0:02:51]}  f5 {[%clk 0:02:59]} 2. Nc3 {[%clk 0:02:48]}  Nf6 {[%clk 0:02:59]} 3. Bg5 {[%clk 0:02:48]}  d5 {[%clk 0:03:00]} 4. f3 {[%clk 0:02:47]}  Nc6 {[%clk 0:02:50]} 5. Qd2 {[%clk 0:02:32]}  e6 {[%clk 0:02:47]} 6. a3 {[%clk 0:02:30]}  Be7 {[%clk 0:02:36]} 7. O-O-O {[%clk 0:02:26]}  a6 {[%clk 0:02:34]} 8. e4 {[%clk 0:02:24]}  fxe4 {[%clk 0:02:05]} 9. fxe4 {[%clk 0:02:23]}  dxe4 {[%clk 0:02:04]} 10. Nge2 {[%clk 0:02:13]}  O-O {[%clk 0:01:56]} 11. Bxf6 {[%clk 0:02:13]}  Bxf6 {[%clk 0:01:43]} 12. Nxe4 {[%clk 0:02:13]}  Be7 {[%clk 0:01:43]} 13. N2c3 {[%clk 0:02:07]}  b5 {[%clk 0:01:38]} 14. d5 {[%clk 0:02:05]}  Ne5 {[%clk 0:01:30]} 15. Qd4 {[%clk 0:01:59]}  Ng4 {[%clk 0:01:23]} 16. Be2 {[%clk 0:01:56]}  Nf6 {[%clk 0:01:11]} 17. Bf3 {[%clk 0:01:47]}  Rb8 {[%clk 0:01:11]} 18. Rhe1 {[%clk 0:01:23]}  b4 {[%clk 0:01:10]} 19. axb4 {[%clk 0:01:23]}  Rxb4 {[%clk 0:01:09]} 20. Qe5 {[%clk 0:01:23]}  Nxe4 {[%clk 0:01:02]} 21. Rxe4 {[%clk 0:01:04]}  Bg5+ {[%clk 0:00:58]} 22. Kb1 {[%clk 0:01:03]}  Bf6 {[%clk 0:00:53]} 23. Qxf6 {[%clk 0:00:49]}  Rxb2+ {[%clk 0:00:53]} 24. Kxb2 {[%clk 0:00:47]}  Qxf6 {[%clk 0:00:54]} 25. dxe6 {[%clk 0:00:45]}  Bxe6 {[%clk 0:00:51]} 26. Rxe6 {[%clk 0:00:45]}  Rb8+ {[%clk 0:00:49]} 27. Kc1 {[%clk 0:00:34]}  Qxc3 {[%clk 0:00:49]} 28. Rd3 {[%clk 0:00:30]}  Qa1+ {[%clk 0:00:48]} 29. Kd2 {[%clk 0:00:30]}  Qa5+ {[%clk 0:00:49]} 30. Ke2 {[%clk 0:00:29]}  Qc5 {[%clk 0:00:48]} 31. Bd5 {[%clk 0:00:18]}  Kh8 {[%clk 0:00:43]} 32. Kd2 {[%clk 0:00:15]}  Qf2+ {[%clk 0:00:42]} 33. Kc3 {[%clk 0:00:15]}  Qc5+ {[%clk 0:00:40]} 34. Kd2 {[%clk 0:00:15]}  a5 {[%clk 0:00:38]} 35. h3 {[%clk 0:00:10]}  a4 {[%clk 0:00:37]} 36. Ba2 {[%clk 0:00:03]}  Qf2+ {[%clk 0:00:36]} 37. Kc3 {[%clk 0:00:03]}  Qf4 {[%clk 0:00:34]} 38. Rde3 {[%clk 0:00:01]}  Qb4+ {[%clk 0:00:26]} 0-1


[Site "https://www.chess.com"]